fUSD/lending_fUSD_20241220
["ID","MTS","AMOUNT","RATE_DAILY","PERIOD"]
[346095716,1734705046239,-1029.0,0.00019818,2]
[346095717,1734705046249,-524.0,0.00019818,2]
[346095718,1734705046259,-1000.0,0.0001993,2]
[346095719,1734705046270,-151.0,0.0001998,2]
[346095720,1734705046280,-154.679021,0.0001998,2]
[346095721,1734705046291,-2243520.94172144,0.0001998,2]
[346095722,1734705046302,-189.926368,0.0001998,2]
[346095723,1734705046312,-463.283799,0.0001998,2]
[346095724,1734705046322,-189.926368,0.0001998,2]
[346095725,1734705046332,-463.283799,0.0001998,2]
[346095726,1734705046343,-151.0,0.0001998,2]
[346095727,1734705046352,-358.13378,0.0001998,2]
[346095728,1734705046362,-174.413806,0.0001998,2]
[346095729,1734705046373,-358.13378,0.0001998,2]
[346095730,1734705046383,-174.413806,0.0001998,2]
[346095731,1734705046393,-6216.88748,0.0001998,2]
[346095732,1734705046402,-6216.88748,0.0001998,2]
[346095733,1734705046412,-151.0,0.0001998,2]
[346095734,1734705046422,-151.0,0.0001998,2]
[346095735,1734705046431,-151.0,0.0001998,2]
[346095736,1734705046441,-1677.99633,0.0001998,2]
[346095737,1734705046450,-1677.99633,0.0001998,2]
[346095738,1734705046460,-175.978408,0.0001998,2]
[346095739,1734705046470,-175.978408,0.0001998,2]
[346095740,1734705046480,-151.0,0.0001998,2]
[346095741,1734705046489,-410.028164,0.0001998,2]
[346095742,1734705046499,-6026.86858725,0.0002,2]
[346095743,1734705046509,-297.37700474,0.0002,2]
[346095744,1734705046519,-19022.49896504,0.0002,2]
[346095745,1734705046529,-34215.54358545,0.0002,4]
[346095746,1734705046538,-3950.0,0.0002,2]
[346095747,1734705046548,-1236.08465632,0.0002,2]
[346095748,1734705046558,-2051.50832948,0.0002,2]
[346095749,1734705046567,-811.77232552,0.0002,2]
[346095750,1734705046576,-2212.16,0.0002,2]
[346095751,1734705046586,-564.4861569,0.0002,2]
[346095752,1734705046596,-181.708495,0.0002,2]
[346095753,1734705046606,-151.0,0.0002,2]
[346095754,1734705046616,-151.0,0.0002,2]
[346095755,1734705046626,-151.0,0.0002,2]
[346095756,1734705046636,-151.0,0.0002,2]
[346095757,1734705046648,-151.0,0.0002,2]
[346095758,1734705046666,-277.144935,0.0002,2]
[346095759,1734705046676,-151.0,0.0002,2]
[346095760,1734705046686,-277.144935,0.0002,2]
[346095761,1734705046696,-368.470024,0.0002,2]
[346095762,1734705046706,-368.470024,0.0002,2]
[346095763,1734705046715,-151.0,0.0002,2]
[346095764,1734705046725,-7769.20000014,0.0002,2]
[346095765,1734705046734,-477.436676,0.0002,2]
[346095766,1734705046744,-477.436676,0.0002,2]
[346095767,1734705046753,-573.298386,0.0002,2]
[346095768,1734705046763,-573.298386,0.0002,2]
[346095769,1734705046772,-151.0,0.0002,2]
[346095770,1734705046781,-151.0,0.0002,2]
[346095771,1734705046790,-18688.87096487,0.0002,7]
[346095772,1734705046800,-151.0,0.0002,2]
[346095773,1734705046809,-151.0,0.0002,2]
[346095774,1734705046819,-3741.51993272,0.0002,2]
[346095775,1734705046828,-151.0,0.0002,2]
[346095776,1734705046838,-226.688977,0.0002,2]
[346095777,1734705046847,-56935.52955305,0.0002,2]
[346095778,1734705046856,-10538.85516,0.0002,2]
[346095779,1734705046866,-2771.01315285,0.0002,7]
[346095780,1734705046875,-3563.78854244,0.0002,2]
[346095781,1734705046884,-8024.0749018,0.0002,2]
[346095782,1734705046894,-517.596,0.0002,2]
[346095783,1734705046904,-517.596,0.0002,2]
[346095784,1734705046913,-517.596,0.0002,2]
[346095785,1734705046923,-517.596,0.0002,2]
[346095786,1734705046933,-517.596,0.0002,2]
[346095787,1734705046943,-517.596,0.0002,2]
[346095788,1734705046952,-517.596,0.0002,2]
[346095789,1734705046962,-517.596,0.0002,2]
[346095790,1734705046971,-517.596,0.0002,2]
[346095791,1734705046980,-517.596,0.0002,2]
[346095792,1734705046990,-1000.0,0.0002,2]
[346095793,1734705046999,-150.0,0.00020028,2]
[346095794,1734705047009,-150.0,0.00020044,2]
[346095795,1734705047018,-94343.39281641,0.0002005,2]
[346095796,1734705047028,-151.0,0.0002005,2]
[346095797,1734705047037,-151.0,0.0002005,2]
[346095798,1734705047047,-166.979139,0.0002005,2]
[346095799,1734705047056,-212.367095,0.0002005,2]
[346095800,1734705047066,-166.979139,0.0002005,2]
[346095801,1734705047075,-290.955859,0.0002005,2]
[346095802,1734705047085,-290.955859,0.0002005,2]
[346095803,1734705047094,-2200.0,0.00020068,2]
[346095804,1734705047103,-900.0,0.00020068,2]
[346095805,1734705047112,-300.49,0.00020068,2]
[346095806,1734705047122,-501.77561888,0.00020068,2]
[346095807,1734705047131,-150.0,0.00020081,2]
[346095808,1734705047141,-150.0,0.0002009,2]
[346095809,1734705047151,-410.76,0.00020091,2]
[346095810,1734705047168,-1029.0,0.00020092,2]
[346095811,1734705047178,-524.0,0.00020092,2]
[346095812,1734705047192,-3931.9329283,0.000201,2]
[346095813,1734705047202,-976.77,0.00020204,2]
[346095814,1734705047344,-976.77,0.00020204,2]
[346095815,1734705047354,-976.77,0.00020204,2]
[346095816,1734705047364,-680.55,0.00020204,2]
[346095817,1734705047374,-150.0,0.00020207,2]
[346095818,1734705047384,-28456.84280158,0.000203,2]
[346095819,1734705047394,-150.0,0.00020301,2]
[346095820,1734705047408,-150.0,0.00020341,2]
[346095821,1734705047423,-438.50990491,0.0002035,2]
[346095822,1734705047433,-1029.0,0.00020366,2]
[346095823,1734705047443,-524.0,0.00020366,2]
[346095824,1734705047452,-150.0,0.00020374,2]
[346095825,1734705047463,-150.0,0.00020386,2]
[346095826,1734705047472,-150.0,0.00020433,2]
[346095827,1734705047482,-150.0,0.00020448,2]
[346095828,1734705047491,-150.0,0.00020449,2]
[346095829,1734705047501,-150.0,0.00020459,2]
[346095830,1734705047511,-150.0,0.00020482,2]
[346095831,1734705047520,-150.0,0.00020507,2]
[346095832,1734705047530,-150.0,0.0002053,2]
[346095833,1734705047540,-150.0,0.00020536,2]
[346095834,1734705047549,-902.16,0.00020548,2]
[346095835,1734705047559,-150.0,0.0002056,2]
[346095836,1734705047568,-6537.75540378,0.00020609,2]
[346095837,1734705047578,-150.0,0.0002063,2]
[346095838,1734705047587,-1029.0,0.0002064,2]
[346095839,1734705047598,-524.0,0.0002064,2]
[346095840,1734705047607,-150.0,0.00020642,2]
[346095841,1734705047617,-150.0,0.00020649,2]
[346095842,1734705047626,-150.0,0.00020662,2]
[346095843,1734705047636,-150.0,0.00020662,2]
[346095844,1734705047645,-574.53007213,0.00020662,2]
[346095845,1734705047656,-1002.453753,0.00020662,2]
[346095846,1734705047666,-150.0,0.00020683,2]
[346095847,1734705047676,-150.0,0.00020719,2]
[346095848,1734705047685,-150.0,0.00020723,2]
[346095849,1734705047694,-150.0,0.00020725,2]
[346095850,1734705047704,-152.0,0.00020807,5]
[346095851,1734705047714,-150.0,0.00020819,2]
[346095852,1734705047723,-150.0,0.00020851,2]
[346095853,1734705047733,-150.0,0.00020868,2]
[346095854,1734705047743,-1029.0,0.00020914,2]
[346095855,1734705047752,-524.0,0.00020914,2]
[346095856,1734705047762,-150.0,0.00020961,2]
[346095857,1734705047772,-150.83040153,0.00020997,2]
[346095858,1734705047782,-10000.0,0.00021,2]
[346095859,1734705047793,-201998.48702865,0.00021,2]
[346095860,1734705047802,-3306.82159525,0.00021,5]
[346095861,1734705047812,-650.0,0.00021,2]
[346095862,1734705047821,-200.0,0.00021,2]
[346095863,1734705047831,-152.59802,0.00021,2]
[346095864,1734705047840,-12135.30913864,0.00021,2]
[346095865,1734705047850,-53867.06687138,0.00021,2]
[346095866,1734705047859,-189.926368,0.00021,2]
[346095867,1734705047869,-463.283799,0.00021,2]
[346095868,1734705047879,-189.926368,0.00021,2]
[346095869,1734705047888,-463.283799,0.00021,2]
[346095870,1734705047898,-151.0,0.00021,2]
[346095871,1734705047907,-15792.54573647,0.00021,2]
[346095872,1734705047917,-358.13378,0.00021,2]
[346095873,1734705047926,-965.66723254,0.00021,2]
[346095874,1734705047936,-174.413806,0.00021,2]
[346095875,1734705047945,-358.13378,0.00021,2]
[346095876,1734705047955,-174.413806,0.00021,2]
[346095877,1734705047965,-6216.88748,0.00021,2]
[346095878,1734705047974,-6216.88748,0.00021,2]
[346095879,1734705047983,-151.0,0.00021,2]
[346095880,1734705047993,-151.0,0.00021,2]
[346095881,1734705048003,-151.0,0.00021,2]
[346095882,1734705048012,-1677.99633,0.00021,2]
[346095883,1734705048021,-1677.99633,0.00021,2]
[346095884,1734705048032,-175.978408,0.00021,2]
[346095885,1734705048042,-175.978408,0.00021,2]
[346095886,1734705048052,-151.0,0.00021,2]
[346095887,1734705048062,-410.028164,0.00021,2]
[346095888,1734705048071,-800.0,0.00021014,2]
[346095889,1734705048081,-150.0,0.00021018,2]
[346095890,1734705048090,-200.0,0.00021096,2]
[346095891,1734705048100,-150.0,0.00021104,2]
[346095892,1734705048109,-150.0,0.00021115,2]
[346095893,1734705048118,-150.0,0.00021119,2]
[346095894,1734705048128,-2200.0,0.00021164,2]
[346095895,1734705048137,-900.0,0.00021164,2]
[346095896,1734705048146,-500.0,0.00021164,2]
[346095897,1734705048159,-1029.0,0.00021188,2]
[346095898,1734705048169,-524.0,0.00021188,2]
[346095899,1734705048178,-150.0,0.00021194,2]
[346095900,1734705048188,-150.0,0.00021199,2]
[346095901,1734705048197,-150.0,0.00021208,2]
[346095902,1734705048207,-150.0,0.00021241,2]
[346095903,1734705048216,-994.83011977,0.00021246,2]
[346095904,1734705048225,-150.0,0.00021261,2]
[346095905,1734705048235,-150.0,0.00021269,2]
[346095906,1734705048245,-150.0,0.00021274,2]
[346095907,1734705048255,-150.0,0.00021288,2]
[346095908,1734705048265,-150.0,0.00021311,2]
[346095909,1734705048276,-150.0,0.00021323,2]
[346095910,1734705048286,-150.0,0.00021329,2]
[346095911,1734705048298,-150.0,0.00021349,2]
[346095912,1734705048307,-999.0,0.00021369,2]
[346095913,1734705048318,-150.0,0.00021389,2]
[346095914,1734705048327,-150.0,0.00021411,2]
[346095915,1734705048338,-1958.81,0.00021423,2]
[346095916,1734705048349,-150.0,0.00021457,2]
[346095917,1734705048358,-151.0,0.00021457,2]
[346095918,1734705048370,-1029.0,0.00021462,2]
[346095919,1734705048379,-524.0,0.00021462,2]
[346095920,1734705048389,-151.0,0.00021473,2]
[346095921,1734705048398,-151.0,0.00021473,2]
[346095922,1734705048411,-151.0,0.00021473,2]
[346095923,1734705048421,-151.0,0.00021473,2]
[346095924,1734705048430,-151.0,0.00021473,2]
[346095925,1734705048439,-277.144935,0.00021473,2]
[346095926,1734705048448,-277.144935,0.00021473,2]
[346095927,1734705048458,-150.0,0.00021476,2]
[346095928,1734705048467,-150.0,0.00021504,2]
[346095929,1734705048476,-150.0,0.00021516,2]
[346095930,1734705048485,-4490.5321904,0.0002152,2]
[346095931,1734705048495,-150.0,0.00021529,2]
[346095932,1734705048504,-150.0,0.00021529,2]
[346095933,1734705048513,-150.0,0.00021559,2]
[346095934,1734705048522,-201.81,0.00021617,2]
[346095935,1734705048532,-150.0,0.00021667,2]
[346095936,1734705048541,-1000.0,0.00021684,3]
[346095937,1734705048551,-932.43129463,0.00021699,2]
[346095938,1734705048560,-155.66422561,0.00021699,2]
[346095939,1734705048569,-151.52124903,0.00021699,2]
[346095940,1734705048579,-477.436676,0.00021699,2]
[346095941,1734705048588,-477.436676,0.00021699,2]
[346095942,1734705048597,-573.298386,0.00021699,2]
[346095943,1734705048606,-573.298386,0.00021699,2]
[346095944,1734705048616,-151.0,0.00021699,2]
[346095945,1734705048625,-151.0,0.00021699,2]
[346095946,1734705048635,-151.0,0.00021699,2]
[346095947,1734705048644,-151.0,0.00021699,2]
[346095948,1734705048653,-151.0,0.00021699,2]
[346095949,1734705048666,-7230.28911885,0.000217,2]
[346095950,1734705048677,-1029.0,0.00021736,2]
[346095951,1734705048686,-524.0,0.00021736,2]
[346095952,1734705048695,-150.0,0.00021765,2]
[346095953,1734705048704,-150.0,0.00021766,2]
[346095954,1734705048714,-150.0,0.00021769,2]
[346095955,1734705048724,-1000.0,0.000218,2]
[346095956,1734705048734,-932.43129463,0.00021808,2]
[346095957,1734705048743,-300.0,0.00021808,2]
[346095958,1734705048754,-150.0,0.00021815,2]
[346095959,1734705048763,-368.470024,0.00021816,2]
[346095960,1734705048772,-368.470024,0.00021816,2]
[346095961,1734705048783,-151.0,0.00021816,2]
[346095962,1734705048794,-150.0,0.00021832,2]
[346095963,1734705048804,-151.52124903,0.00021836,2]
[346095964,1734705048814,-1195.09843803,0.00021848,10]
[346095965,1734705048824,-173.14886853,0.00021848,10]
[346095966,1734705048834,-1190.33689658,0.00021848,10]
[346095967,1734705048843,-7746.44941975,0.00021848,10]
[346095968,1734705048853,-162.29480687,0.00021848,10]
[346095969,1734705048863,-590.0,0.00021848,10]
[346095970,1734705048872,-676.09760906,0.00021849,10]
[346095971,1734705048884,-247.64108496,0.00021849,10]
[346095972,1734705048893,-179248.1912342,0.0002188,2]
[346095973,1734705048903,-151.0,0.0002188,2]
[346095974,1734705048917,-75972.03020739,0.0002188,2]
[346095975,1734705048927,-151.0,0.0002188,2]
[346095976,1734705048937,-166.979139,0.0002188,2]
[346095977,1734705048946,-166.979139,0.0002188,2]
[346095978,1734705048956,-290.955859,0.0002188,2]
[346095979,1734705048966,-290.955859,0.0002188,2]
[346095980,1734705048975,-6216.88748,0.0002188,2]
[346095981,1734705048985,-6216.88748,0.0002188,2]
[346095982,1734705048994,-151.0,0.0002188,2]
[346095983,1734705049004,-153.776252,0.0002188,2]
[346095984,1734705049014,-175.978408,0.0002188,2]
[346095985,1734705049023,-175.978408,0.0002188,2]
[346095986,1734705049032,-222.567496,0.0002188,2]
[346095987,1734705049042,-410.028164,0.0002188,2]
[346095988,1734705049051,-155.66422561,0.0002189,2]
[346095989,1734705049061,-150.0,0.00021896,2]
[346095990,1734705049071,-501.95,0.00021899,5]
[346095991,1734705049080,-1500.0,0.00021911,2]
[346095992,1734705049090,-187.929474,0.00021917,4]
[346095993,1734705049099,-164.954643,0.00021917,4]
[346095994,1734705049109,-150.809446,0.00021917,4]
[346095995,1734705049118,-250.237156,0.00021917,4]
[346095996,1734705049128,-161.217856,0.00021917,4]
[346095997,1734705049137,-153.880684,0.00021917,4]
[346095998,1734705049147,-500.0,0.00021917,4]
[346095999,1734705049157,-502.4535989,0.00021917,4]
[346096000,1734705049166,-500.0,0.00021917,4]
[346096001,1734705049294,-500.0,0.00021917,4]
[346096002,1734705049305,-500.0,0.00021917,4]
[346096003,1734705049315,-502.52952205,0.00021917,4]
[346096004,1734705049324,-507.83682255,0.00021917,4]
[346096005,1734705049334,-500.0,0.00021917,4]
[346096006,1734705049344,-610.01788015,0.00021917,4]
[346096007,1734705049354,-501.22583501,0.00021917,4]
[346096008,1734705049365,-500.0,0.00021917,4]
[346096009,1734705049375,-501.26558632,0.00021917,4]
[346096010,1734705049386,-500.0,0.00021917,4]
[346096011,1734705049396,-206.46600444,0.00021917,4]
[346096012,1734705049407,-501.60091731,0.00021917,4]
[346096013,1734705049417,-500.0,0.00021917,4]
[346096014,1734705049427,-500.0,0.00021917,4]
[346096015,1734705049437,-502.40066582,0.00021917,4]
[346096016,1734705049447,-502.78154586,0.00021917,4]
[346096017,1734705049457,-500.0,0.00021917,4]
[346096018,1734705049466,-525.0417364,0.00021917,4]
[346096019,1734705049476,-502.75120153,0.00021917,4]
[346096020,1734705049485,-500.0,0.00021917,4]
[346096021,1734705049495,-500.0,0.00021917,4]
[346096022,1734705049505,-500.0,0.00021917,4]
[346096023,1734705049515,-501.11223711,0.00021917,4]
[346096024,1734705049524,-500.0,0.00021917,4]
[346096025,1734705049533,-500.0,0.00021917,4]
[346096026,1734705049543,-500.0,0.00021917,4]
[346096027,1734705049552,-500.0,0.00021917,4]
[346096028,1734705049561,-500.0,0.00021917,4]
[346096029,1734705049571,-500.0,0.00021917,4]
[346096030,1734705049580,-500.0,0.00021917,4]
[346096031,1734705049589,-500.0,0.00021917,4]
[346096032,1734705049599,-500.0,0.00021917,4]
[346096033,1734705049609,-500.0,0.00021917,4]
[346096034,1734705049618,-500.0,0.00021917,4]
[346096035,1734705049628,-500.0,0.00021917,4]
[346096036,1734705049638,-500.0,0.00021917,4]
[346096037,1734705049648,-500.0,0.00021917,4]
[346096038,1734705049661,-470.85665565,0.00021917,4]
[346096039,1734705049670,-500.67662429,0.00021917,4]
[346096040,1734705049680,-500.0,0.00021917,4]
[346096041,1734705049690,-502.29834745,0.00021917,4]
[346096042,1734705049699,-300.9783535,0.00021917,4]
[346096043,1734705049709,-501.9377394,0.00021917,4]
[346096044,1734705049719,-500.0,0.00021917,4]
[346096045,1734705049729,-501.11260254,0.00021917,4]
[346096046,1734705049738,-501.90677383,0.00021917,4]
[346096047,1734705049748,-501.37842709,0.00021917,4]
[346096048,1734705049758,-501.89811826,0.00021917,4]
[346096049,1734705049767,-500.0,0.00021917,4]
[346096050,1734705049778,-500.0,0.00021917,4]
[346096051,1734705049788,-500.0,0.00021917,4]
[346096052,1734705049798,-500.0,0.00021917,4]
[346096053,1734705049808,-500.0,0.00021917,4]
[346096054,1734705049817,-500.0,0.00021917,4]
[346096055,1734705049826,-502.14931263,0.00021917,4]
[346096056,1734705049836,-500.0,0.00021917,4]
[346096057,1734705049845,-500.0,0.00021917,4]
[346096058,1734705049855,-500.0,0.00021917,4]
[346096059,1734705049865,-500.0,0.00021917,4]
[346096060,1734705049874,-500.0,0.00021917,4]
[346096061,1734705049884,-500.0,0.00021917,4]
[346096062,1734705049895,-500.0,0.00021917,4]
[346096063,1734705049904,-500.0,0.00021917,4]
[346096064,1734705049916,-500.0,0.00021917,4]
[346096065,1734705049926,-500.0,0.00021917,4]
[346096066,1734705049936,-500.0,0.00021917,4]
[346096067,1734705049945,-497.92538934,0.00021917,4]
[346096068,1734705049955,-500.0,0.00021917,4]
[346096069,1734705049965,-502.81274604,0.00021917,4]
[346096070,1734705049975,-500.0,0.00021917,4]
[346096071,1734705049984,-500.0,0.00021917,4]
[346096072,1734705049994,-500.0,0.00021917,4]
[346096073,1734705050004,-500.0,0.00021917,4]
[346096074,1734705050013,-501.35581602,0.00021917,4]
[346096075,1734705050023,-501.79186892,0.00021917,4]
[346096076,1734705050033,-501.17368568,0.00021917,4]
[346096077,1734705050042,-500.0,0.00021917,4]
[346096078,1734705050051,-500.0,0.00021917,4]
[346096079,1734705050061,-500.0,0.00021917,4]
[346096080,1734705050071,-500.0,0.00021917,4]
[346096081,1734705050080,-500.0,0.00021917,4]
[346096082,1734705050089,-500.0,0.00021917,4]
[346096083,1734705050098,-500.0,0.00021917,4]
[346096084,1734705050107,-728.98,0.00021917,4]
[346096085,1734705050116,-501.41065169,0.00021917,4]
[346096086,1734705050126,-227.48213264,0.00021917,4]
[346096087,1734705050135,-500.82021957,0.00021917,4]
[346096088,1734705050144,-500.0,0.00021917,4]
[346096089,1734705050154,-500.0,0.00021917,4]
[346096090,1734705050165,-503.28800909,0.00021917,4]
[346096091,1734705050175,-500.0,0.00021917,4]
[346096092,1734705050184,-501.20323896,0.00021917,4]
[346096093,1734705050194,-500.0,0.00021917,4]
[346096094,1734705050203,-500.0,0.00021917,4]
[346096095,1734705050213,-500.0,0.00021917,4]
[346096096,1734705050222,-500.0,0.00021917,2]
[346096097,1734705050231,-500.0,0.00021917,4]
[346096098,1734705050240,-500.0,0.00021917,4]
[346096099,1734705050250,-500.0,0.00021917,4]
[346096100,1734705050259,-500.0,0.00021917,4]
[346096101,1734705050270,-500.0,0.00021917,4]
[346096102,1734705050283,-500.0,0.00021917,4]
[346096103,1734705050292,-500.0,0.00021917,4]
[346096104,1734705050301,-500.0,0.00021917,4]
[346096105,1734705050310,-500.0,0.00021917,4]
[346096106,1734705050321,-500.0,0.00021917,4]
[346096107,1734705050331,-500.79920515,0.00021917,4]
[346096108,1734705050340,-500.0,0.00021917,4]
[346096109,1734705050349,-500.0,0.00021917,4]
[346096110,1734705050359,-500.0,0.00021917,4]
[346096111,1734705050368,-501.05445402,0.00021917,4]
[346096112,1734705050377,-500.0,0.00021917,4]
[346096113,1734705050386,-500.0,0.00021917,4]
[346096114,1734705050396,-500.0,0.00021917,4]
[346096115,1734705050408,-502.68518419,0.00021917,4]
[346096116,1734705050417,-500.0,0.00021917,4]
[346096117,1734705050426,-500.0,0.00021917,4]
[346096118,1734705050436,-500.0,0.00021917,4]
[346096119,1734705050445,-500.0,0.00021917,4]
[346096120,1734705050455,-503.33973399,0.00021917,4]
[346096121,1734705050465,-501.80775694,0.00021917,4]
[346096122,1734705050474,-501.47198878,0.00021917,4]
[346096123,1734705050483,-241.33786136,0.00021917,4]
[346096124,1734705050492,-500.0,0.00021917,4]
[346096125,1734705050501,-500.0,0.00021917,4]
[346096126,1734705050510,-500.0,0.00021917,4]
[346096127,1734705050520,-578.15238109,0.00021917,4]
[346096128,1734705050529,-500.0,0.00021917,4]
[346096129,1734705050539,-500.0,0.00021917,4]
[346096130,1734705050548,-500.0,0.00021917,4]
[346096131,1734705050557,-500.0,0.00021917,4]
[346096132,1734705050566,-500.0,0.00021917,4]
[346096133,1734705050575,-545.0022487,0.00021917,4]
[346096134,1734705050585,-500.0,0.00021917,4]
[346096135,1734705050594,-500.0,0.00021917,4]
[346096136,1734705050604,-500.0,0.00021917,4]
[346096137,1734705050614,-703.15,0.00021917,4]
[346096138,1734705050624,-500.0,0.00021917,4]
[346096139,1734705050633,-500.0,0.00021917,4]
[346096140,1734705050642,-500.0,0.00021917,4]
[346096141,1734705050651,-500.0,0.00021917,4]
[346096142,1734705050663,-502.70735928,0.00021917,4]
[346096143,1734705050672,-502.31470228,0.00021917,4]
[346096144,1734705050682,-500.0,0.00021917,4]
[346096145,1734705050691,-500.0,0.00021917,4]
[346096146,1734705050701,-500.0,0.00021917,4]
[346096147,1734705050710,-500.0,0.00021917,4]
[346096148,1734705050719,-500.0,0.00021917,4]
[346096149,1734705050728,-500.0,0.00021917,4]
[346096150,1734705050737,-500.0,0.00021917,4]
[346096151,1734705050747,-500.0,0.00021917,4]
[346096152,1734705050757,-500.0,0.00021917,4]
[346096153,1734705050766,-500.0,0.00021917,4]
[346096154,1734705050776,-500.0,0.00021917,4]
[346096155,1734705050785,-302.49828367,0.00021917,4]
[346096156,1734705050794,-500.0,0.00021917,4]
[346096157,1734705050804,-500.0,0.00021917,4]
[346096158,1734705050813,-500.0,0.00021917,4]
[346096159,1734705050822,-500.0,0.00021917,4]
[346096160,1734705050832,-500.0,0.00021917,4]
[346096161,1734705050841,-500.0,0.00021917,4]
[346096162,1734705050850,-517.22201846,0.00021917,4]
[346096163,1734705050860,-500.0,0.00021917,4]
[346096164,1734705050869,-500.0,0.00021917,4]
[346096165,1734705050879,-500.0,0.00021917,4]
[346096166,1734705050891,-500.0,0.00021917,4]
[346096167,1734705050901,-500.0,0.00021917,4]
[346096168,1734705050913,-500.0,0.00021917,4]
[346096169,1734705050922,-500.0,0.00021917,4]
[346096170,1734705050932,-500.0,0.00021917,4]
[346096171,1734705050941,-500.0,0.00021917,4]
[346096172,1734705050951,-500.0,0.00021917,4]
[346096173,1734705051089,-500.0,0.00021917,4]
[346096174,1734705051100,-500.0,0.00021917,4]
[346096175,1734705051109,-500.0,0.00021917,4]
[346096176,1734705051119,-500.0,0.00021917,4]
[346096177,1734705051128,-500.0,0.00021917,4]
[346096178,1734705051138,-500.0,0.00021917,4]
[346096179,1734705051148,-500.0,0.00021917,4]
[346096180,1734705051161,-500.0,0.00021917,4]
[346096181,1734705051171,-500.0,0.00021917,4]
[346096182,1734705051181,-500.0,0.00021917,4]
[346096183,1734705051191,-500.0,0.00021917,4]
[346096184,1734705051200,-500.0,0.00021917,4]
[346096185,1734705051210,-500.0,0.00021917,4]
[346096186,1734705051220,-500.0,0.00021917,4]
[346096187,1734705051230,-500.0,0.00021917,4]
[346096188,1734705051239,-500.0,0.00021917,4]
[346096189,1734705051249,-500.0,0.00021917,4]
[346096190,1734705051260,-500.0,0.00021917,4]
[346096191,1734705051270,-500.0,0.00021917,4]
[346096192,1734705051280,-500.0,0.00021917,4]
[346096193,1734705051290,-502.49837809,0.00021917,4]
[346096194,1734705051302,-500.0,0.00021917,4]
[346096195,1734705051311,-502.6269501,0.00021917,4]
[346096196,1734705051322,-500.0,0.00021917,4]
[346096197,1734705051332,-500.0,0.00021917,4]
[346096198,1734705051342,-500.0,0.00021917,4]
[346096199,1734705051350,-500.0,0.00021917,4]
[346096200,1734705051360,-503.12761209,0.00021917,4]
[346096201,1734705051371,-500.0,0.00021917,4]
[346096202,1734705051381,-500.0,0.00021917,4]
[346096203,1734705051390,-500.0,0.00021917,4]
[346096204,1734705051399,-500.0,0.00021917,4]
[346096205,1734705051411,-500.0,0.00021917,4]
[346096206,1734705051421,-500.0,0.00021917,4]
[346096207,1734705051431,-500.0,0.00021917,4]
[346096208,1734705051440,-500.0,0.00021917,4]
[346096209,1734705051449,-500.0,0.00021917,4]
[346096210,1734705051460,-500.0,0.00021917,4]
[346096211,1734705051470,-500.0,0.00021917,4]
[346096212,1734705051481,-300.0,0.00021917,4]
[346096213,1734705051491,-500.0,0.00021917,4]
[346096214,1734705051501,-235.49685592,0.00021917,4]
[346096215,1734705051511,-500.0,0.00021917,4]